{"text_format":"1","workbook":"xlsx","n_sheets":4,"sheets":["SIMULAÇÃO","IMPACTO","Cálculo","Dúvidas"],"not_rendered":{"charts":0,"images":19,"macros":1,"external_links":0,"defined_names":1,"comments":0,"pivot_tables":0},"unopened":[],"bounds":{"document_bytes":16777216,"sheet_cells":100000,"rows_first":2000,"rows_last":500,"rows_between":2000,"halvings":0,"cell_chars":16384,"cell_head_chars":4096},"cells_cut":0,"cells_raw":0,"read":"whole","date_system":"1900"}

{"sheet":"SIMULAÇÃO","index":0,"n_rows":54,"n_cols":6,"rows_kept":54,"cut":false,"hidden":false,"merged":[[9,1,9,2],[35,1,35,2],[4,1,4,12],[6,1,6,12],[53,1,53,12]]}
[]
[]
[null,"Simulador de Benefício Fiscal - Imposto de Renda"]
[]
[null,"O presente simulador apresenta uma estimativa com base em dados e premissas livremente informados. Os resultados apresentados são representam garantia de benefício."]
[]
[null,"Somente os campos em azul claro devem ser preenchidos para simulação."]
[]
[]
[null,"DADOS PARA SIMULAÇÃO"]
[]
[]
[null,"Enquadramento Previdenciário"]
[]
[null,"Renda Anual Tributável"]
[]
[null,"Quantidade de dependentes"]
[null,"Dedução anual por dependente",null,null,null,{"$f":"Cálculo!C33","v":2275.08}]
[]
[null,"Despesas médicas no ano"]
[]
[null,"Despesas com ensino no ano"]
[null,"Limite anual",null,null,null,{"$f":"Cálculo!C34","v":3561.5}]
[]
[null,"Contribuição anual à previdência oficial "]
[null,"Valor de referência",null,null,null,{"$f":"Cálculo!J8","v":0}]
[]
[null,"Pensão alimentícia no ano",null,null,null,0]
[]
[null,"Contribuições Básicas à RS-Prev"]
[]
[null,"Contribuições Facultativas à RS-Prev"]
[null,"Contribuição para benefício fiscal máximo",null,null,null,{"$f":"Cálculo!K13","v":0}]
[null,{"$f":"IF(AND(F32<>\"\",F32<F33),\"Ainda é possível aproveitar\",\"\")","v":""},null,null,null,{"$f":"IF(B34=\"\",\"\",F33-F32)","v":""}]
[]
[null,"SIMULAÇÃO"]
[]
[null,null,null,null,"SIMULAÇÃO ATUAL","SIMULAÇÃO COM BENEFÍCIO MÁXIMO"]
[null,"Base de Cálculo do IR",null,null,{"$f":"Cálculo!$H$4","v":0},{"$f":"Cálculo!$H$4","v":0}]
[]
[null,"Deduções",null,null,{"$f":"Cálculo!$H$10","v":0},{"$f":"Cálculo!$H$10","v":0}]
[]
[null,"Contribuições básicas",null,null,{"$f":"Cálculo!$H$12","v":0},{"$f":"Cálculo!J12","v":0}]
[]
[null,"Contribuições Facultativas",null,null,{"$f":"Cálculo!H13","v":0},{"$f":"Cálculo!J13","v":0}]
[]
[null,"Base de Cálculo do IR (Líquida)",null,null,{"$f":"Cálculo!H16","v":0},{"$f":"Cálculo!J16","v":0}]
[]
[null,"Imposto Devido",null,null,{"$f":"Cálculo!H17","v":0},{"$f":"Cálculo!J17","v":0}]
[]
[null,"Benefício Fiscal",null,null,{"$f":"Cálculo!H18","v":0},{"$f":"Cálculo!J18","v":0}]
[]
[]
[null,"O presente simulador apresenta uma estimativa com base em dados e em premissas livremente informados. \nTrata-se apenas de uma simulação, sem qualquer autenticação por parte da RS-Prev quanto à veracidade dos dados informados.\nOs resultados apresentados são apenas simulados e não representam promessa ou garantia de benefício.\nO valor efetivo do benefício fiscal somente será calculado no momento da declaração, com base na situação individual, na forma prevista pela Receita Federal.\nAs deduções e seus respectivos limites podem ser alterados pela Receita Federal a qualquer tempo."]

{"sheet":"IMPACTO","index":1,"n_rows":12,"n_cols":6,"rows_kept":12,"cut":false,"hidden":true,"merged":[[8,1,8,3],[2,1,2,2],[4,1,4,3],[6,1,6,3]]}
[]
[]
[null,"IMPACTO NO FUTURO"]
[]
[null,"Nova contribuição facultativa",null,null,{"$f":"SIMULAÇÃO!F32","v":0}]
[]
[null,"Rentabilidade Anual",null,null,0.04]
[]
[null,"Simular rentabilidade após ",null,null,3,"anos"]
[]
[]
[null,"Rendimento",null,null,{"$f":"FV(E7,E9,,-E5,1)-E5","v":0}]

{"sheet":"Cálculo","index":2,"n_rows":40,"n_cols":11,"rows_kept":40,"cut":false,"hidden":true,"merged":[[35,1,35,2],[8,1,8,2],[15,1,15,2],[31,1,31,2],[19,1,19,2]]}
[]
[null,"Alíquota IR","Alíquota","Parcela a deduzir",null,null,"SIMULAÇÃO","INFORMADO","SEM FACULTATIVA","MÁXIMO BENEFÍCIO"]
[null,0,0,0,null,null,"Renda Mensal",{"$f":"H4/12","v":0}]
[null,22847.77,7.4999999999999997E-2,1713.58,null,null,"Renda Anual",{"$f":"SIMULAÇÃO!F15","v":0}]
[null,33919.81,0.15,4257.57,null,null,"Dedução por dependente",{"$f":"SIMULAÇÃO!F17*Cálculo!C33","v":0},{"$f":"H5","v":0}]
[null,45012.61,0.22500000000000001,7633.51,null,null,"Despesas médicas",{"$f":"SIMULAÇÃO!F20","v":0},{"$f":"H6","v":0}]
[null,55976.160000000003,0.27500000000000002,10432.32,null,null,"Despesas com ensino",{"$f":"IF(SIMULAÇÃO!F22>Cálculo!C34,Cálculo!C34,SIMULAÇÃO!F22)","v":0},0]
[null,null,null,null,null,null,"Contribuições à previdência oficial (RPPS)",{"$f":"SIMULAÇÃO!F25","v":0},0,{"$f":"IF(SIMULAÇÃO!F13=Cálculo!B38,D29,IF(SIMULAÇÃO!F13=Cálculo!B39,D30,IF(B10>H3,H3*C10,IF(B11>H3,H3*C11,IF(B12>H3,H3*C12,IF(B13>H3,H3*C13,B13*C13))))))*12","v":0}]
[null,"Alíquota INSS",null,null,null,null,"Pensão alimentícia",{"$f":"SIMULAÇÃO!F28","v":0},0]
[null,1045,7.4999999999999997E-2,null,null,null,"TOTAL DE DEDUÇÕES (SEM RS-PREV)",{"$f":"SUM(H5:H9)","v":0},{"$f":"SUM(I5:I9)","v":0}]
[null,2089.6,0.09,null,null,null,"Categoria de participante",{"$f":"IF(AND(H3>B13,SIMULAÇÃO!F13=Cálculo!B39),\"PATROCINADO\",IF(SIMULAÇÃO!F13=Cálculo!B40,\"RGPS\",\"INDIVIDUAL\"))","v":"INDIVIDUAL"}]
[null,3134.4,0.12,null,null,null,"Contribuições Básicas à RS-Prev",{"$f":"SIMULAÇÃO!F30","v":0},{"$f":"H12","v":0},{"$f":"IF(H11=\"RGPS\",0,IF(H11=\"PATROCINADO\",(H3-B13)*0.075,H3*0.075)*12)","v":0}]
[null,6101.06,0.14000000000000001,null,null,null,"Contribuições Facultativas à RS-Prev",{"$f":"SIMULAÇÃO!F32","v":0},0,{"$f":"IF(H11=\"RGPS\",0,(H4*12%)-IF(H11=\"PATROCINADO\",0,J12))","v":0},{"$f":"IF(H11=\"RGPS\",0,(H4*12%)-IF(H11=\"PATROCINADO\",0,I12))","v":0}]
[null,null,"Teto INSS",null,null,null,"Dedução máxima facultativa",{"$f":"$J$13","v":0},{"$f":"$J$13","v":0},{"$f":"$J$13","v":0}]
[null,null,null,null,null,null,"TOTAL DE DEDUÇÕES (COM RS-PREV)",{"$f":"$H$10+H12+IF(H13>H14,H14,H13)","v":0},{"$f":"$H$10+I12+IF(I13>I14,I14,I13)","v":0},{"$f":"$H$10+SUM(J12:J13)","v":0}]
[null,"Alíquota IPEprev",null,null,null,null,"BASE DE CÁLCULO APÓS DEDUÇÕES",{"$f":"$H$4-H10-H15","v":0},{"$f":"$H$4-I10-I15","v":0},{"$f":"$H$4-$H$10-J15","v":0}]
[null,"Alíquota Base",0.14000000000000001,null,null,null,"Imposto de Renda",{"$f":"IF(H16>$B$7,(H16*$C$7)-$D$7,IF(H16>$B$6,(H16*$C$6)-$D$6,IF(H16>$B$5,(H16*$C$5)-$D$5,IF(H16>$B$4,(H16*$C$4)-$D$4,0))))","v":0},{"$f":"IF(I16>$B$7,(I16*$C$7)-$D$7,IF(I16>$B$6,(I16*$C$6)-$D$6,IF(I16>$B$5,(I16*$C$5)-$D$5,IF(I16>$B$4,(I16*$C$4)-$D$4,0))))","v":0},{"$f":"IF(J16>$B$7,(J16*$C$7)-$D$7,IF(J16>$B$6,(J16*$C$6)-$D$6,IF(J16>$B$5,(J16*$C$5)-$D$5,IF(J16>$B$4,(J16*$C$4)-$D$4,0))))","v":0}]
[null,"Salário Mínimo",1045,null,null,null,"Benefício Fiscal",{"$f":"I17-H17","v":0},null,{"$f":"I17-J17","v":0}]
[]
[null,"Faixa IPEprev",null,"Contribuição"]
[null,{"$f":"C18","v":1045},{"$f":"C17-6.5%","v":7.5000000000000011E-2},{"$f":"IF(B21<H3,B21*C21,H3*C21)","v":0}]
[null,2089.6,{"$f":"C17-5%","v":9.0000000000000011E-2},{"$f":"IF(B22<$H$3,(B22-B21+0.01)*C22,IF(B21<$H$3,($H$3-B21+0.01)*C22,0))","v":0}]
[null,3134.3999999999996,{"$f":"C17-2%","v":0.12000000000000001},0]
[null,6101.0573599999998,{"$f":"C17","v":0.14000000000000001},0]
[null,10448,{"$f":"C17+0.5%","v":0.14500000000000002},0]
[null,20896,{"$f":"C17+2.5%","v":0.16500000000000001},0]
[null,40747.199999999997,{"$f":"C17+5%","v":0.19},0]
[null,{"$f":"\"Acima de \"&B27","v":"Acima de 40747,2"},{"$f":"C17+8%","v":0.22000000000000003},{"$f":"IF(H3>B27+0.01,(H3-B27+0.01)*C28,0)","v":0}]
[null,null,"RPPS",{"$f":"SUM(D21:D28)","v":0}]
[null,null,"RPC",{"$f":"SUM(D21:D24)","v":0}]
[]
[null,"Deduções"]
[null,"Dependente",{"$f":"189.59*12","v":2275.08}]
[null,"Educação",{"$f":"3561.5*(1+SIMULAÇÃO!F17)","v":3561.5}]
[]
[null,"LISTAS"]
[null,"Enquadramentos","Renda"]
[null,"RPPS","MENSAL"]
[null,"RPC","ANUAL"]
[null,"RGPS"]

{"sheet":"Dúvidas","index":3,"n_rows":10,"n_cols":4,"rows_kept":10,"cut":false,"hidden":true,"merged":[]}
[null,"DÚVIDA","EXPLICAÇÃO","EXPLICAÇÃO PARA FÓRMULA"]
[null,"RPC","RPC: Aposentadoria e pensão limitados ao teto do RGPS, contribuições até o teto. "]
[null,"RPPS","RPPS: Aposentadoria e pensão sem limitação ao teto, contribuições sobre o total da remuneração."]
[null,"RGPS","RGPS: Vínculo CLT. Não é possível entrar no plano considerando as regras atuais."]
[null,"Renda anual tributável","São aqueles sobre o qual incide o imposto de renda."]
[null,"Dependentes","Pessoas que podem ser incluídas na sua declaração. Veja os casos na pergunta 323 do \"Perguntão\" (Receita Federal)"]
[null,"Contribuição Básica RS-Prev","Contribuição mensal (alíquota entre 4,5% e 7,5%). O Estado também contribui para o participante patrocinado."]
[null,"Contribuição Facultativa","Contribuição de livre escolha do participante, em valor e periodicidade definida por ele."]
[null,"Benefício Fiscal","As contribuições para previdência complementar podem ser deduzidas da renda anual tributável, até 12%."]
[null,"Escolha aqui."]